fUST/lending_fUST_20250613
["ID","MTS","AMOUNT","RATE_DAILY","PERIOD"]
[365638815,1749816632635,-300.0,0.00019858,2]
[365638817,1749816632645,-300.0,0.00019858,2]
[365638819,1749816632656,-271.18130867,0.00019859,2]
[365638821,1749816632666,-300.0,0.00019958,2]
[365638823,1749816632676,-1210.9021184,0.00019959,2]
[365638825,1749816632685,-15777.04643045,0.00019959,2]
[365638827,1749816632695,-1688.0,0.00020042,2]
[365638829,1749816632704,-207.4,0.00020042,2]
[365638831,1749816632714,-166.055403,0.00020054,2]
[365638833,1749816632725,-166.055403,0.00020054,15]
[365638835,1749816632734,-166.055403,0.00020054,28]
[365638837,1749816632744,-166.055403,0.00020054,41]
[365638839,1749816632754,-166.055403,0.00020054,54]
[365638842,1749816632765,-1750.456,0.00020097,2]
[365638844,1749816632774,-1815.222872,0.00020152,2]
[365638845,1749816632783,-1083.77,0.00020158,2]
[365638848,1749816632793,-1882.38611826,0.00020207,2]
[365638849,1749816632804,-1952.03440464,0.00020262,2]
[365638851,1749816632813,-2024.25967761,0.00020317,2]
[365638853,1749816632823,-1558.89952763,0.00020321,2]
[365638855,1749816632832,-2099.15728568,0.00020372,2]
[365638857,1749816632841,-1349.10968111,0.00020427,2]
[365638859,1749816632850,-426.66814913,0.00020431,2]
[365638861,1749816632859,-500.0,0.000205,2]
[365638863,1749816632869,-151.70252757,0.000205,2]
[365638864,1749816632878,-500.0,0.000205,2]
[365638866,1749816632895,-500.0,0.000205,2]
[365638868,1749816632904,-500.0,0.000205,2]
[365638870,1749816632914,-151.0,0.000205,2]
[365638872,1749816632923,-151.0,0.000205,2]
[365638874,1749816632932,-500.0,0.000205,2]
[365638877,1749816632942,-5000.0,0.000205,2]
[365638878,1749816632951,-151.0,0.000205,2]
[365638880,1749816632961,-500.0,0.000205,2]
[365638882,1749816632969,-500.0,0.000205,2]
[365638884,1749816632978,-500.0,0.000205,2]
[365638886,1749816632987,-151.0,0.000205,2]
[365638888,1749816632996,-500.0,0.000205,2]
[365638889,1749816633006,-500.0,0.000205,2]
[365638890,1749816633015,-500.0,0.000205,2]
[365638891,1749816633025,-500.0,0.000205,2]
[365638893,1749816633034,-500.0,0.000205,2]
[365638895,1749816633045,-151.0,0.000205,2]
[365638897,1749816633055,-500.0,0.000205,2]
[365638899,1749816633065,-500.0,0.000205,2]
[365638901,1749816633076,-500.0,0.000205,2]
[365638903,1749816633086,-151.0,0.000205,2]
[365638905,1749816633096,-500.0,0.000205,2]
[365638907,1749816633106,-9516.88860598,0.000205,2]
[365638909,1749816633116,-500.0,0.000205,2]
[365638911,1749816633127,-500.0,0.000205,2]
[365638913,1749816633139,-151.0,0.000205,2]
[365638915,1749816633149,-500.0,0.000205,2]
[365638917,1749816633159,-500.0,0.000205,2]
[365638919,1749816633169,-500.0,0.000205,2]
[365638921,1749816633179,-151.0,0.000205,2]
[365638923,1749816633189,-500.0,0.000205,2]
[365638925,1749816633198,-500.0,0.000205,2]
[365638927,1749816633208,-156.10376169,0.000205,2]
[365638928,1749816633218,-151.0,0.000205,2]
[365638941,1749816633337,-500.0,0.000205,2]
[365638943,1749816633347,-500.0,0.000205,2]
[365638944,1749816633356,-500.0,0.000205,2]
[365638946,1749816633366,-500.0,0.000205,2]
[365638948,1749816633376,-500.0,0.000205,2]
[365638950,1749816633387,-151.0,0.000205,2]
[365638952,1749816633397,-500.0,0.000205,2]
[365638953,1749816633407,-500.0,0.000205,2]
[365638954,1749816633419,-151.0,0.000205,2]
[365638956,1749816633428,-500.0,0.000205,2]
[365638958,1749816633439,-500.0,0.000205,2]
[365638960,1749816633449,-151.0,0.000205,2]
[365638962,1749816633458,-500.0,0.000205,2]
[365638964,1749816633468,-500.0,0.000205,2]
[365638966,1749816633478,-151.0,0.000205,2]
[365638968,1749816633487,-500.0,0.000205,2]
[365638970,1749816633497,-500.0,0.000205,2]
[365638972,1749816633506,-151.0,0.000205,2]
[365638974,1749816633515,-500.0,0.000205,2]
[365638976,1749816633525,-183.60450056,0.000205,2]
[365638978,1749816633535,-500.0,0.000205,2]
[365638980,1749816633545,-500.0,0.000205,2]
[365638982,1749816633555,-157.05,0.00020503,2]
[365638984,1749816633565,-500.0,0.00020511,2]
[365638986,1749816633575,-646.80421751,0.00020511,2]
[365638988,1749816633585,-500.0,0.00020511,2]
[365638990,1749816633595,-500.0,0.00020511,2]
[365638992,1749816633605,-500.0,0.00020511,2]
[365638994,1749816633614,-500.0,0.00020511,2]
[365638996,1749816633625,-500.0,0.00020511,2]
[365638998,1749816633635,-500.0,0.00020511,2]
[365639000,1749816633645,-500.0,0.00020511,2]
[365639002,1749816633655,-500.0,0.00020511,2]
[365639004,1749816633665,-500.0,0.00020511,2]
[365639006,1749816633675,-500.0,0.00020511,2]
[365639008,1749816633684,-500.0,0.00020511,2]
[365639010,1749816633694,-500.0,0.00020511,2]
[365639012,1749816633704,-429.65159945,0.00020511,2]
[365639014,1749816633714,-500.0,0.00020511,2]
[365639016,1749816633726,-500.0,0.00020511,2]
[365639018,1749816633735,-500.0,0.00020511,2]
[365639020,1749816633745,-500.0,0.00020511,2]
[365639021,1749816633754,-500.0,0.00020511,2]
[365639023,1749816633765,-367.69855213,0.00020511,2]
[365639025,1749816633775,-500.0,0.00020511,2]
[365639028,1749816633785,-500.0,0.00020511,2]
[365639030,1749816633796,-500.0,0.00020511,2]
[365639032,1749816633806,-500.0,0.00020511,2]
[365639034,1749816633815,-500.0,0.00020511,2]
[365639036,1749816633825,-432.9499886,0.00020511,2]
[365639038,1749816633835,-500.0,0.00020511,2]
[365639040,1749816633844,-500.0,0.00020511,2]
[365639042,1749816633855,-500.0,0.00020511,2]
[365639044,1749816633864,-273.89183776,0.00020511,2]
[365639045,1749816633873,-500.0,0.00020511,2]
[365639048,1749816633884,-500.0,0.00020511,2]
[365639049,1749816633894,-435.70822153,0.00020511,2]
[365639052,1749816633904,-500.0,0.00020511,2]
[365639053,1749816633914,-500.0,0.00020511,2]
[365639055,1749816633924,-500.0,0.00020511,2]
[365639057,1749816633934,-500.0,0.00020511,2]
[365639059,1749816633943,-500.0,0.00020511,2]
[365639061,1749816633952,-255.0,0.00020511,2]
[365639063,1749816633961,-500.0,0.00020511,2]
[365639065,1749816633970,-500.0,0.00020511,2]
[365639067,1749816633979,-500.0,0.00020511,2]
[365639069,1749816633988,-500.0,0.00020511,2]
[365639071,1749816633998,-500.0,0.00020511,2]
[365639073,1749816634007,-500.0,0.00020511,2]
[365639075,1749816634017,-500.0,0.00020511,2]
[365639077,1749816634027,-500.0,0.00020511,2]
[365639079,1749816634036,-500.0,0.00020511,2]
[365639081,1749816634046,-500.0,0.00020511,2]
[365639083,1749816634057,-500.0,0.00020511,2]
[365639085,1749816634067,-24900.0,0.00020512,2]
[365639087,1749816634076,-426.66814911,0.00020713,2]
[365639089,1749816634086,-1760.29086519,0.000209,4]
[365639091,1749816634095,-500.0,0.00020964,2]
[365639093,1749816634105,-1558.89952756,0.00020976,2]
[365639095,1749816634115,-11537.72206856,0.0002098,2]
[365639096,1749816634124,-426.66814911,0.00020994,2]
[365639098,1749816634134,-5000.0,0.00021048,2]
[365639100,1749816634144,-1760.29086515,0.00021072,4]
[365639102,1749816634154,-258.65809854,0.00021073,2]
[365639104,1749816634164,-258.67270721,0.00021073,2]
[365639106,1749816634175,-500.0,0.00021073,2]
[365639108,1749816634185,-500.0,0.00021073,2]
[365639110,1749816634195,-500.0,0.00021073,2]
[365639112,1749816634206,-500.0,0.00021073,2]
[365639114,1749816634216,-500.0,0.00021073,2]
[365639117,1749816634226,-500.0,0.00021073,2]
[365639118,1749816634235,-502.56237238,0.00021073,2]
[365639120,1749816634245,-500.0,0.00021073,2]
[365639122,1749816634255,-500.0,0.00021073,2]
[365639125,1749816634266,-501.58342673,0.00021073,2]
[365639126,1749816634276,-500.0,0.00021073,2]
[365639130,1749816634298,-500.0,0.00021073,2]
[365639132,1749816634308,-500.12234525,0.00021073,2]
[365639134,1749816634319,-500.0,0.00021073,2]
[365639136,1749816634328,-389.79435841,0.00021073,2]
[365639138,1749816634338,-500.0,0.00021073,2]
[365639140,1749816634347,-165.84814081,0.00021073,2]
[365639142,1749816634358,-500.0,0.00021073,2]
[365639144,1749816634368,-500.0,0.00021073,2]
[365639145,1749816634378,-500.0,0.00021073,2]
[365639147,1749816634389,-500.0,0.00021073,2]
[365639149,1749816634399,-500.0,0.00021073,2]
[365639151,1749816634410,-349.3274311,0.00021074,2]
[365639153,1749816634419,-249.29,0.0002108,3]
[365639155,1749816634429,-747.89,0.0002108,3]
[365639157,1749816634439,-152.51519567,0.00021091,2]
[365639159,1749816634448,-545.8,0.00021093,2]
[365639161,1749816634458,-192.25,0.00021093,2]
[365639163,1749816634467,-500.0,0.00021094,2]
[365639165,1749816634477,-500.0,0.00021094,2]
[365639167,1749816634486,-500.0,0.00021094,2]
[365639169,1749816634496,-500.0,0.00021094,2]
[365639171,1749816634506,-500.0,0.00021094,2]
[365639173,1749816634515,-500.0,0.00021094,2]
[365639175,1749816634525,-318.70158995,0.00021094,2]
[365639177,1749816634535,-500.0,0.00021094,2]
[365639178,1749816634546,-500.0,0.00021094,2]
[365639179,1749816634557,-500.0,0.00021094,2]
[365639180,1749816634566,-500.0,0.00021094,2]
[365639181,1749816634576,-500.0,0.00021094,2]
[365639182,1749816634586,-500.0,0.00021094,2]
[365639183,1749816634595,-181.77306693,0.00021094,2]
[365639184,1749816634605,-500.0,0.00021094,2]
[365639185,1749816634614,-500.0,0.00021094,2]
[365639186,1749816634624,-500.0,0.00021094,2]
[365639187,1749816634634,-500.0,0.00021094,2]
[365639188,1749816634643,-500.0,0.00021094,2]
[365639189,1749816634653,-500.0,0.00021094,2]
[365639190,1749816634662,-500.0,0.00021094,2]
[365639191,1749816634672,-500.0,0.00021094,2]
[365639192,1749816634682,-500.0,0.00021094,2]
[365639193,1749816634691,-500.0,0.00021094,2]
[365639194,1749816634701,-436.58639569,0.00021094,2]
[365639195,1749816634712,-500.0,0.00021094,2]
[365639196,1749816634724,-500.0,0.00021094,2]
[365639197,1749816634734,-500.0,0.00021094,2]
[365639198,1749816634744,-500.0,0.00021094,2]
[365639199,1749816634753,-500.0,0.00021094,2]
[365639200,1749816634764,-500.0,0.00021094,2]
[365639201,1749816634774,-500.0,0.00021094,2]
[365639202,1749816634783,-350.0,0.00021094,2]
[365639203,1749816634794,-255.41171657,0.00021094,2]
[365639204,1749816634804,-651.30379635,0.00021094,2]
[365639205,1749816634813,-300.0,0.00021094,2]
[365639206,1749816634823,-500.0,0.00021094,2]
[365639207,1749816634833,-315.0,0.00021094,2]
[365639208,1749816634842,-500.0,0.00021094,2]
[365639209,1749816634851,-500.0,0.00021094,2]
[365639210,1749816634861,-1069.92,0.00021094,2]
[365639212,1749816634870,-538.78717344,0.00021094,2]
[365639213,1749816634879,-538.78717344,0.00021094,2]
[365639214,1749816634890,-577.58206457,0.00021094,2]
[365639216,1749816634900,-442.06092651,0.00021095,4]
[365639218,1749816634909,-430.0,0.00021095,4]
[365639221,1749816634919,-460.0,0.00021095,4]
[365639223,1749816634929,-460.0,0.00021095,4]
[365639224,1749816634938,-460.0,0.00021095,4]
[365639226,1749816634948,-460.0,0.00021095,4]
[365639228,1749816634958,-460.0,0.00021095,4]
[365639230,1749816634967,-440.0,0.00021095,4]
[365639232,1749816634977,-401.47213034,0.00021095,4]
[365639234,1749816634986,-431.96335034,0.00021095,4]
[365639236,1749816634996,-430.0,0.00021095,4]
[365639238,1749816635005,-430.0,0.00021095,4]
[365639240,1749816635014,-444.41586194,0.00021095,4]
[365639242,1749816635024,-401.9812149,0.00021095,4]
[365639244,1749816635033,-430.0,0.00021095,4]
[365639246,1749816635042,-400.21125402,0.00021095,4]
[365639248,1749816635051,-440.0,0.00021095,4]
[365639250,1749816635061,-430.0,0.00021095,4]
[365639252,1749816635071,-430.0,0.00021095,4]
[365639254,1749816635080,-420.0,0.00021095,4]
[365639255,1749816635089,-435.53422683,0.00021095,4]
[365639256,1749816635099,-243.76716451,0.00021095,4]
[365639257,1749816635108,-244.25041939,0.00021095,4]
[365639258,1749816635117,-440.0,0.00021095,4]
[365639259,1749816635127,-440.0,0.00021095,4]
[365639260,1749816635137,-430.0,0.00021095,4]
[365639261,1749816635146,-440.0,0.00021095,4]
[365639262,1749816635156,-440.0,0.00021095,4]
[365639263,1749816635166,-440.0,0.00021095,4]
[365639264,1749816635175,-401.33201656,0.00021095,4]
[365639265,1749816635185,-430.0,0.00021095,4]
[365639266,1749816635195,-430.0,0.00021095,4]
[365639267,1749816635204,-430.0,0.00021095,4]
[365639268,1749816635214,-440.0,0.00021095,4]
[365639269,1749816635223,-431.75273935,0.00021095,4]
[365639270,1749816635232,-440.0,0.00021095,4]
[365639271,1749816635242,-464.73410924,0.00021095,4]
[365639272,1749816635251,-440.0,0.00021095,4]
[365639273,1749816635261,-430.0,0.00021095,4]
[365639274,1749816635271,-430.0,0.00021095,4]
[365639275,1749816635280,-440.0,0.00021095,4]
[365639276,1749816635289,-430.0,0.00021095,4]
[365639277,1749816635299,-440.0,0.00021095,4]
[365639278,1749816635308,-440.0,0.00021095,4]
[365639279,1749816635317,-440.0,0.00021095,4]
[365639280,1749816635327,-440.0,0.00021095,4]
[365639281,1749816635337,-345.89486169,0.00021095,4]
[365639282,1749816635346,-433.34998106,0.00021095,4]
[365639283,1749816635355,-430.0,0.00021095,4]
[365639284,1749816635365,-440.0,0.00021095,4]
[365639285,1749816635374,-430.0,0.00021095,4]
[365639286,1749816635384,-430.0,0.00021095,4]
[365639287,1749816635394,-440.0,0.00021095,4]
[365639288,1749816635404,-467.78825742,0.00021095,4]
[365639289,1749816635413,-460.0,0.00021095,4]
[365639290,1749816635423,-440.0,0.00021095,4]
[365639291,1749816635432,-460.0,0.00021095,4]
[365639292,1749816635442,-440.0,0.00021095,4]
[365639293,1749816635452,-440.0,0.00021095,4]
[365639294,1749816635462,-430.0,0.00021095,4]
[365639295,1749816635472,-440.0,0.00021095,4]
[365639298,1749816635578,-440.0,0.00021095,4]
[365639300,1749816635589,-440.0,0.00021095,4]
[365639302,1749816635599,-440.0,0.00021095,4]
[365639304,1749816635608,-440.0,0.00021095,4]
[365639306,1749816635618,-444.52755077,0.00021095,4]
[365639308,1749816635627,-431.50651256,0.00021095,4]
[365639310,1749816635637,-434.50039234,0.00021095,4]
[365639312,1749816635646,-460.0,0.00021095,4]
[365639313,1749816635655,-460.0,0.00021095,4]
[365639315,1749816635665,-440.0,0.00021095,4]
[365639317,1749816635674,-440.0,0.00021095,4]
[365639318,1749816635684,-460.0,0.00021095,4]
[365639319,1749816635693,-440.0,0.00021095,4]
[365639320,1749816635703,-460.0,0.00021095,4]
[365639321,1749816635713,-457.09859192,0.00021095,4]
[365639322,1749816635726,-460.0,0.00021095,4]
[365639323,1749816635735,-400.0,0.00021095,4]
[365639324,1749816635745,-460.0,0.00021095,4]
[365639325,1749816635754,-440.0,0.00021095,4]
[365639326,1749816635765,-440.0,0.00021095,4]
[365639327,1749816635775,-460.0,0.00021095,4]
[365639328,1749816635784,-407.03483909,0.00021095,4]
[365639329,1749816635794,-440.66750593,0.00021095,4]
[365639330,1749816635803,-432.49996697,0.00021095,4]
[365639331,1749816635813,-281.41049981,0.00021095,4]
[365639332,1749816635822,-445.91533249,0.00021095,4]
[365639333,1749816635831,-420.0,0.00021095,4]
[365639334,1749816635840,-392.25482467,0.00021095,4]
[365639335,1749816635850,-440.0,0.00021095,4]
[365639336,1749816635859,-430.0,0.00021095,4]
[365639337,1749816635869,-440.0,0.00021095,4]
[365639338,1749816635878,-440.0,0.00021095,4]
[365639339,1749816635888,-443.91088591,0.00021095,4]
[365639340,1749816635897,-460.0,0.00021095,4]
[365639341,1749816635907,-432.16371547,0.00021095,4]
[365639342,1749816635916,-432.28252784,0.00021095,4]
[365639343,1749816635926,-430.0,0.00021095,4]
[365639344,1749816635935,-440.0,0.00021095,4]
[365639345,1749816635944,-450.0,0.00021095,4]
[365639346,1749816635954,-443.69063427,0.00021095,4]
[365639347,1749816635963,-440.0,0.00021095,4]
[365639348,1749816635973,-440.0,0.00021095,4]
[365639349,1749816635983,-426.93015106,0.00021095,4]
[365639350,1749816636001,-3.06984894,0.00021095,4]
[365639351,1749816636010,-434.40297189,0.00021095,4]
[365639352,1749816636020,-440.0,0.00021095,4]
[365639353,1749816636029,-460.0,0.00021095,4]
[365639354,1749816636039,-440.0,0.00021095,4]
[365639355,1749816636048,-446.02733148,0.00021095,4]
[365639356,1749816636057,-460.0,0.00021095,2]
[365639357,1749816636067,-426.0,0.00021095,4]
[365639358,1749816636076,-430.0,0.00021095,4]
[365639359,1749816636086,-460.0,0.00021095,4]
[365639360,1749816636096,-460.0,0.00021095,4]
[365639361,1749816636106,-461.38681087,0.00021095,4]
[365639362,1749816636115,-439.95408627,0.00021095,4]
[365639363,1749816636125,-440.0,0.00021095,4]
[365639364,1749816636135,-440.0,0.00021095,4]
[365639365,1749816636145,-440.0,0.00021095,4]
[365639366,1749816636154,-438.29200507,0.00021095,4]
[365639367,1749816636163,-381.35476244,0.00021095,4]
[365639368,1749816636173,-460.0,0.00021095,4]
[365639369,1749816636182,-440.0,0.00021095,4]
[365639370,1749816636192,-439.19219459,0.00021095,4]
[365639371,1749816636201,-351.32129608,0.00021095,4]
[365639372,1749816636211,-430.0,0.00021095,4]
[365639373,1749816636220,-460.0,0.00021095,4]
[365639374,1749816636230,-440.0,0.00021095,4]
[365639375,1749816636239,-460.0,0.00021095,4]
[365639376,1749816636249,-440.0,0.00021095,4]
[365639377,1749816636258,-460.0,0.00021095,4]
[365639378,1749816636267,-460.0,0.00021095,4]
[365639379,1749816636278,-440.0,0.00021095,4]
[365639380,1749816636287,-436.34798676,0.00021095,4]
[365639381,1749816636296,-442.98225468,0.00021095,4]
[365639382,1749816636305,-460.0,0.00021095,4]
[365639383,1749816636315,-446.62210225,0.00021095,4]
[365639384,1749816636324,-440.0,0.00021095,4]
[365639385,1749816636334,-448.15294311,0.00021095,4]
[365639386,1749816636343,-437.80033293,0.00021095,4]
[365639387,1749816636352,-440.0,0.00021095,4]
[365639388,1749816636361,-458.37362095,0.00021095,4]
[365639389,1749816636371,-440.0,0.00021095,4]
[365639390,1749816636380,-460.0,0.00021095,4]
[365639391,1749816636392,-440.0,0.00021095,4]
[365639392,1749816636402,-440.0,0.00021095,4]
[365639393,1749816636411,-436.74914392,0.00021095,4]
[365639394,1749816636421,-561.77866117,0.00021095,4]
[365639395,1749816636430,-449.88509272,0.00021095,4]
[365639396,1749816636440,-440.0,0.00021095,4]
[365639397,1749816636451,-159.28421111,0.00021095,4]
[365639398,1749816636461,-447.89638055,0.00021095,4]
[365639399,1749816636471,-446.74968782,0.00021095,4]
[365639400,1749816636481,-444.82029355,0.00021095,4]
[365639401,1749816636491,-470.0,0.00021095,4]
[365639402,1749816636501,-460.0,0.00021095,2]
[365639403,1749816636512,-440.0,0.00021095,4]
[365639404,1749816636523,-440.0,0.00021095,4]
[365639405,1749816636533,-440.0,0.00021095,4]
[365639406,1749816636544,-458.87778034,0.00021095,4]
[365639407,1749816636554,-460.0,0.00021095,4]
[365639408,1749816636564,-500.0,0.00021095,2]
[365639409,1749816636574,-500.0,0.00021095,2]
[365639410,1749816636583,-500.0,0.00021095,2]
[365639411,1749816636593,-440.4,0.00021095,2]
[365639412,1749816636604,-507.48557906,0.00021095,4]
[365639413,1749816636614,-165.34009342,0.00021095,4]
[365639414,1749816636624,-261.99259156,0.00021095,4]
[365639415,1749816636638,-430.70265601,0.00021095,4]
[365639416,1749816636648,-460.0,0.00021095,4]
[365639417,1749816636659,-440.0,0.00021095,4]
[365639418,1749816636670,-435.38776922,0.00021095,4]
[365639419,1749816636680,-433.18924757,0.00021095,4]
[365639420,1749816636692,-460.0,0.00021095,4]
[365639421,1749816636702,-500.0,0.00021095,4]
[365639422,1749816636713,-500.0,0.00021095,4]
[365639423,1749816636726,-500.0,0.00021095,4]
[365639424,1749816636736,-500.0,0.00021095,4]
[365639425,1749816636746,-500.0,0.00021095,4]
[365639426,1749816636756,-500.0,0.00021095,4]
[365639427,1749816636767,-435.71199468,0.00021095,4]
[365639428,1749816636777,-459.08516597,0.00021095,4]
[365639429,1749816636787,-430.0,0.00021095,4]
[365639430,1749816636799,-440.0,0.00021095,4]
[365639431,1749816636809,-318.61573498,0.00021095,4]
[365639432,1749816636819,-464.80942509,0.00021095,4]
[365639433,1749816636830,-450.0,0.00021095,4]
[365639434,1749816636839,-440.0,0.00021095,4]
[365639435,1749816636849,-430.0,0.00021095,4]
[365639436,1749816636858,-460.0,0.00021095,4]
[365639437,1749816636868,-230.0,0.00021095,4]
[365639438,1749816636878,-460.0,0.00021095,4]
[365639439,1749816636891,-440.0,0.00021095,4]
[365639440,1749816636900,-460.0,0.00021095,4]
[365639441,1749816636910,-440.0,0.00021095,4]
[365639442,1749816636919,-440.0,0.00021095,4]
[365639443,1749816636929,-460.0,0.00021095,4]
[365639444,1749816636939,-430.0,0.00021095,4]
[365639445,1749816636949,-460.0,0.00021095,4]
[365639446,1749816636960,-433.05624699,0.00021095,4]
[365639447,1749816636970,-440.0,0.00021095,4]
[365639448,1749816636979,-440.0,0.00021095,4]
[365639449,1749816636989,-460.0,0.00021095,4]
[365639450,1749816636999,-437.06770204,0.00021095,4]
[365639451,1749816637008,-460.0,0.00021095,4]
[365639452,1749816637018,-440.0,0.00021095,4]
[365639453,1749816637027,-446.14391749,0.00021095,4]
[365639454,1749816637037,-434.94623588,0.00021095,4]
[365639455,1749816637047,-460.0,0.00021095,4]
[365639456,1749816637056,-391.09100437,0.00021095,4]
[365639457,1749816637066,-436.4222847,0.00021095,4]
[365639458,1749816637076,-440.0,0.00021095,4]
[365639459,1749816637085,-430.0,0.00021095,4]
[365639460,1749816637094,-345.65578232,0.00021095,4]
[365639461,1749816637105,-464.88139342,0.00021095,4]
[365639462,1749816637114,-440.0,0.00021095,4]
[365639463,1749816637124,-430.0,0.00021095,4]
[365639464,1749816637134,-344.8517289,0.00021095,4]
[365639465,1749816637144,-460.0,0.00021095,4]
[365639466,1749816637154,-1771.57,0.00021095,4]
[365639467,1749816637164,-440.0,0.00021095,4]
[365639468,1749816637173,-445.65950727,0.00021095,4]
[365639469,1749816637183,-460.0,0.00021095,4]
[365639470,1749816637193,-407.56601054,0.00021095,4]
[365639471,1749816637202,-460.0,0.00021095,4]
[365639472,1749816637211,-460.0,0.00021095,4]
[365639473,1749816637221,-440.0,0.00021095,4]
[365639474,1749816637231,-440.0,0.00021095,4]
[365639475,1749816637241,-460.0,0.00021095,4]
[365639476,1749816637251,-460.0,0.00021095,4]
[365639477,1749816637260,-489.74237691,0.00021095,4]
[365639478,1749816637270,-436.81780264,0.00021095,4]
[365639479,1749816637279,-447.47040699,0.00021095,4]
[365639480,1749816637288,-460.0,0.00021095,4]
[365639481,1749816637307,-440.0,0.00021095,4]
[365639482,1749816637316,-460.0,0.00021095,4]
[365639483,1749816637325,-460.0,0.00021095,4]
[365639484,1749816637335,-460.0,0.00021095,4]
[365639485,1749816637345,-460.0,0.00021095,4]
[365639486,1749816637355,-441.91489974,0.00021095,4]
[365639487,1749816637364,-460.0,0.00021095,4]
[365639488,1749816637373,-460.0,0.00021095,4]
[365639489,1749816637383,-460.0,0.00021095,4]
[365639490,1749816637395,-440.0,0.00021095,4]
[365639491,1749816637405,-442.78904077,0.00021095,4]
[365639492,1749816637415,-460.0,0.00021095,4]
[365639493,1749816637424,-422.51804157,0.00021095,4]
[365639494,1749816637434,-460.0,0.00021095,4]
[365639495,1749816637444,-626.15,0.00021095,4]
[365639496,1749816637454,-626.15,0.00021095,4]
[365639497,1749816637463,-440.0,0.00021095,4]
[365639498,1749816637474,-626.15,0.00021095,4]
[365639499,1749816637484,-626.15,0.00021095,4]
[365639500,1749816637494,-626.15,0.00021095,4]
[365639501,1749816637504,-626.15,0.00021095,4]
[365639502,1749816637514,-405.77066063,0.00021095,4]
[365639503,1749816637523,-402.6488445,0.00021095,4]
[365639504,1749816637534,-440.0,0.00021095,4]
[365639505,1749816637543,-460.0,0.00021095,4]
[365639506,1749816637554,-507.33687514,0.00021095,4]
[365639507,1749816637658,-460.0,0.00021095,4]
[365639508,1749816637668,-440.0,0.00021095,4]
[365639509,1749816637678,-440.21713979,0.00021095,4]
[365639510,1749816637688,-230.0,0.00021095,4]
[365639511,1749816637698,-410.0,0.00021095,4]
[365639512,1749816637708,-440.0,0.00021095,4]
[365639513,1749816637720,-430.0,0.00021095,4]
[365639514,1749816637730,-432.80172026,0.00021095,4]
[365639515,1749816637740,-460.0,0.00021095,4]
[365639516,1749816637749,-422.35868645,0.00021095,4]
[365639517,1749816637759,-430.0,0.00021095,4]
[365639518,1749816637768,-430.0,0.00021095,4]
[365639519,1749816637778,-460.0,0.00021095,4]
[365639520,1749816637787,-273.53267993,0.00021095,4]
[365639521,1749816637799,-1212.34,0.00021095,4]
[365639522,1749816637809,-434.92284644,0.00021095,4]
[365639523,1749816637819,-460.0,0.00021095,4]
[365639524,1749816637829,-1498.25,0.00021095,4]
[365639525,1749816637837,-460.0,0.00021095,4]
[365639526,1749816637847,-460.0,0.00021095,4]
[365639527,1749816637857,-433.89148514,0.00021095,4]
[365639528,1749816637866,-440.0,0.00021095,4]